[Event "*** MasterClass Titled Tuesday Blitz"]
[Site "Chess.com"]
[Date "2017.12.12"]
[Round "9"]
[White "cheese111"]
[Black "MartinZumsande"]
[Result "1/2-1/2"]
[WhiteElo "2423"]
[BlackElo "2465"]
[TimeControl "180+2"]
[EndTime "15:08:35 PST"]
[Termination "Game drawn - insufficient material"]

1. e4 {[%clk 0:03:00.1]} 1... e6 {[%clk 0:03:01]} 2. d4 {[%clk 0:03:00.6]} 2...
d5 {[%clk 0:03:02.4]} 3. Nd2 {[%clk 0:03:01.9]} 3... Nf6 {[%clk 0:03:03.1]} 4.
e5 {[%clk 0:03:02.3]} 4... Nfd7 {[%clk 0:03:04.5]} 5. Bd3 {[%clk 0:03:03.6]}
5... c5 {[%clk 0:03:05.9]} 6. c3 {[%clk 0:03:05.2]} 6... b6 {[%clk 0:03:07.5]}
7. Ngf3 {[%clk 0:02:47.3]} 7... Ba6 {[%clk 0:03:07.2]} 8. Bxa6 {[%clk
0:02:43.7]} 8... Nxa6 {[%clk 0:03:09.1]} 9. O-O {[%clk 0:02:44.3]} 9... Nc7
{[%clk 0:03:09.3]} 10. Re1 {[%clk 0:02:42.4]} 10... f5 {[%clk 0:03:04.5]} 11.
exf6 {[%clk 0:02:37.3]} 11... Nxf6 {[%clk 0:03:05.6]} 12. c4 {[%clk 0:02:38.4]}
12... Be7 {[%clk 0:02:58.6]} 13. Ng5 {[%clk 0:02:25.6]} 13... O-O {[%clk
0:02:56.8]} 14. Nxe6 {[%clk 0:02:18.5]} 14... Nxe6 {[%clk 0:02:57.7]} 15. Rxe6
{[%clk 0:02:20.4]} 15... cxd4 {[%clk 0:02:57.7]} 16. cxd5 {[%clk 0:02:19.2]}
16... Bc5 {[%clk 0:02:47.5]} 17. Nf3 {[%clk 0:02:13.5]} 17... Qxd5 {[%clk
0:02:46]} 18. Re5 {[%clk 0:02:05.9]} 18... Qc4 {[%clk 0:02:38.8]} 19. Qb3 {[%clk
0:01:07.5]} 19... Qxb3 {[%clk 0:02:36.8]} 20. axb3 {[%clk 0:01:09.4]} 20... a5
{[%clk 0:02:37.6]} 21. Bd2 {[%clk 0:00:59.3]} 21... Rac8 {[%clk 0:02:35.9]} 22.
Rc1 {[%clk 0:00:53.8]} 22... d3 {[%clk 0:02:30.6]} 23. h3 {[%clk 0:00:40.5]}
23... Rfd8 {[%clk 0:02:11.7]} 24. Kf1 {[%clk 0:00:24]} 24... h6 {[%clk
0:01:58.7]} 25. Rc4 {[%clk 0:00:13.6]} 25... Kf7 {[%clk 0:01:56.1]} 26. Ke1
{[%clk 0:00:04.4]} 26... Re8 {[%clk 0:01:49.8]} 27. Rxe8 {[%clk 0:00:03.5]}
27... Rxe8+ {[%clk 0:01:51.7]} 28. Kf1 {[%clk 0:00:04.7]} 28... Ne4 {[%clk
0:01:40.8]} 29. Be3 {[%clk 0:00:03.5]} 29... Ng3+ {[%clk 0:01:31.4]} 30. Ke1
{[%clk 0:00:03.4]} 30... Bxe3 {[%clk 0:01:24.8]} 31. fxe3 {[%clk 0:00:05.3]}
31... Rxe3+ {[%clk 0:01:24.5]} 32. Kf2 {[%clk 0:00:06.4]} 32... Nf5 {[%clk
0:01:18.9]} 33. Rf4 {[%clk 0:00:04.7]} 33... Re2+ {[%clk 0:01:09.7]} 34. Kf1
{[%clk 0:00:04.6]} 34... Ke6 {[%clk 0:00:58.6]} 35. Rxf5 {[%clk 0:00:05.3]}
35... Kxf5 {[%clk 0:00:58.5]} 36. Nd4+ {[%clk 0:00:06.7]} 36... Ke4 {[%clk
0:00:22.9]} 37. Nxe2 {[%clk 0:00:08.6]} 37... d2 {[%clk 0:00:21.2]} 38. Nc3+
{[%clk 0:00:08.5]} 38... Kd3 {[%clk 0:00:22.8]} 39. Kf2 {[%clk 0:00:09.5]} 39...
b5 {[%clk 0:00:24.1]} 40. Nd1 {[%clk 0:00:10]} 40... h5 {[%clk 0:00:19.6]} 41.
h4 {[%clk 0:00:09.5]} 41... g6 {[%clk 0:00:20.1]} 42. Kf3 {[%clk 0:00:10.2]}
42... b4 {[%clk 0:00:20.9]} 43. g3 {[%clk 0:00:09.3]} 43... Kc2 {[%clk
0:00:21.9]} 44. Ke2 {[%clk 0:00:10.2]} 44... Kxb3 {[%clk 0:00:23.6]} 45. Kxd2
{[%clk 0:00:11.6]} 45... a4 {[%clk 0:00:25.5]} 46. Kd3 {[%clk 0:00:11.5]} 46...
a3 {[%clk 0:00:26.3]} 47. bxa3 {[%clk 0:00:12.6]} 47... bxa3 {[%clk 0:00:27.5]}
48. Nc3 {[%clk 0:00:12.9]} 48... Kb2 {[%clk 0:00:27.1]} 49. Nd1+ {[%clk
0:00:10.7]} 49... Kc1 {[%clk 0:00:21.8]} 50. Ne3 {[%clk 0:00:06.7]} 50... a2
{[%clk 0:00:18.6]} 51. Nc2 {[%clk 0:00:07.5]} 51... Kb2 {[%clk 0:00:20.1]} 52.
Kd2 {[%clk 0:00:08.5]} 52... Kb3 {[%clk 0:00:18.7]} 53. Kc1 {[%clk 0:00:07.6]}
53... Kc3 {[%clk 0:00:17.4]} 54. Na1 {[%clk 0:00:04.5]} 54... Kd3 {[%clk
0:00:18.1]} 55. Kb2 {[%clk 0:00:06.1]} 55... Ke3 {[%clk 0:00:19.6]} 56. Kxa2
{[%clk 0:00:05.1]} 56... Kf3 {[%clk 0:00:21]} 57. Kb2 {[%clk 0:00:07]} 57...
Kxg3 {[%clk 0:00:22.4]} 58. Kc2 {[%clk 0:00:08.9]} 58... Kxh4 {[%clk 0:00:24]}
59. Kd2 {[%clk 0:00:10.8]} 59... Kg3 {[%clk 0:00:25.6]} 60. Ke2 {[%clk
0:00:11.6]} 60... Kg2 {[%clk 0:00:27]} 61. Nc2 {[%clk 0:00:13]} 61... h4 {[%clk
0:00:28.4]} 62. Ne1+ {[%clk 0:00:13.8]} 62... Kg3 {[%clk 0:00:28.3]} 63. Kf1
{[%clk 0:00:14.5]} 63... g5 {[%clk 0:00:27.7]} 64. Kg1 {[%clk 0:00:16.4]} 64...
g4 {[%clk 0:00:28.8]} 65. Ng2 {[%clk 0:00:14.2]} 65... h3 {[%clk 0:00:29.7]} 66.
Ne3 {[%clk 0:00:15.8]} 66... Kf3 {[%clk 0:00:29.9]} 67. Nxg4 {[%clk 0:00:16.7]}
67... h2+ {[%clk 0:00:31.1]} 68. Kxh2 {[%clk 0:00:18.6]} 1/2-1/2

[Event "*** MasterClass Titled Tuesday Blitz"]
[Site "Chess.com"]
[Date "2017.12.12"]
[Round "9"]
[White "Kawhi_Leonard2"]
[Black "ChainsOfFantasia"]
[Result "1-0"]
[WhiteElo "2274"]
[BlackElo "2455"]
[TimeControl "180+2"]
[EndTime "15:08:37 PST"]
[Termination "Kawhi_Leonard2 won by checkmate"]

1. e4 {[%clk 0:03:01.9]} 1... c6 {[%clk 0:02:58.6]} 2. d4 {[%clk 0:03:01.6]}
2... d5 {[%clk 0:03:00.5]} 3. Nc3 {[%clk 0:03:02.2]} 3... dxe4 {[%clk
0:03:01.4]} 4. Nxe4 {[%clk 0:03:03.4]} 4... Bf5 {[%clk 0:03:03]} 5. Ng3 {[%clk
0:03:04.5]} 5... Bg6 {[%clk 0:03:04.5]} 6. h4 {[%clk 0:03:06]} 6... h6 {[%clk
0:03:05.9]} 7. Nf3 {[%clk 0:03:06.9]} 7... Nd7 {[%clk 0:03:06.1]} 8. h5 {[%clk
0:03:07.8]} 8... Bh7 {[%clk 0:03:04.8]} 9. Bd3 {[%clk 0:03:09.4]} 9... Bxd3
{[%clk 0:03:06.4]} 10. Qxd3 {[%clk 0:03:10.9]} 10... e6 {[%clk 0:03:08.3]} 11.
Bd2 {[%clk 0:03:12]} 11... Ngf6 {[%clk 0:03:09]} 12. O-O-O {[%clk 0:03:13.5]}
12... Be7 {[%clk 0:03:10.9]} 13. Ne4 {[%clk 0:03:14.2]} 13... Nxe4 {[%clk
0:03:10.7]} 14. Qxe4 {[%clk 0:03:15.4]} 14... Nf6 {[%clk 0:03:12.3]} 15. Qd3
{[%clk 0:03:16.7]} 15... Qd5 {[%clk 0:03:12.7]} 16. c4 {[%clk 0:03:16.2]} 16...
Qe4 {[%clk 0:03:13.6]} 17. Qb3 {[%clk 0:03:17.2]} 17... O-O {[%clk 0:03:09.1]}
18. Rde1 {[%clk 0:03:17.3]} 18... Qg4 {[%clk 0:03:07.6]} 19. Ne5 {[%clk
0:03:13.6]} 19... Qxd4 {[%clk 0:03:03]} 20. f4 {[%clk 0:03:01.4]} 20... Rfd8
{[%clk 0:02:57]} 21. Be3 {[%clk 0:03:02.1]} 21... Qe4 {[%clk 0:02:54.5]} 22. g4
{[%clk 0:02:57.4]} 22... b5 {[%clk 0:02:16.6]} 23. Bd2 {[%clk 0:02:22.6]} 23...
Qg2 {[%clk 0:02:07.6]} 24. Qc2 {[%clk 0:02:21.4]} 24... bxc4 {[%clk 0:01:53.3]}
25. g5 {[%clk 0:02:09.9]} 25... Ne4 {[%clk 0:01:43.9]} 26. Ba5 {[%clk
0:01:57.3]} 26... Qxc2+ {[%clk 0:01:29.2]} 27. Kxc2 {[%clk 0:01:59.2]} 27... Nf2
{[%clk 0:01:23.2]} 28. Bxd8 {[%clk 0:01:49.8]} 28... Rxd8 {[%clk 0:01:21.4]} 29.
Nxc6 {[%clk 0:01:41.2]} 29... Rd7 {[%clk 0:01:20.4]} 30. Nxe7+ {[%clk
0:01:09.6]} 30... Rxe7 {[%clk 0:01:22.3]} 31. Rhf1 {[%clk 0:01:09.5]} 31... Nd3
{[%clk 0:01:19]} 32. Re4 {[%clk 0:01:10.9]} 32... Nb4+ {[%clk 0:01:03.5]} 33.
Kb1 {[%clk 0:01:03]} 33... Nd5 {[%clk 0:00:53.5]} 34. g6 {[%clk 0:01:00.8]}
34... c3 {[%clk 0:00:50.7]} 35. Rc4 {[%clk 0:00:55.8]} 35... fxg6 {[%clk
0:00:32.6]} 36. hxg6 {[%clk 0:00:55.4]} 36... Re8 {[%clk 0:00:25.7]} 37. Re1
{[%clk 0:00:55.7]} 37... cxb2 {[%clk 0:00:25.2]} 38. Rxe6 {[%clk 0:00:54.5]}
38... Rb8 {[%clk 0:00:22.1]} 39. Rec6 {[%clk 0:00:41.3]} 39... Ne7 {[%clk
0:00:21.2]} 40. Re6 {[%clk 0:00:36.5]} 40... Kf8 {[%clk 0:00:16.2]} 41. Rc2
{[%clk 0:00:31.2]} 41... Nd5 {[%clk 0:00:16.6]} 42. Re4 {[%clk 0:00:27.9]} 42...
h5 {[%clk 0:00:14.9]} 43. Rd4 {[%clk 0:00:25.7]} 43... Ne7 {[%clk 0:00:14.7]}
44. f5 {[%clk 0:00:22]} 44... Nxf5 {[%clk 0:00:09.7]} 45. Rf2 {[%clk 0:00:22.3]}
45... Rb5 {[%clk 0:00:09.8]} 46. Rdf4 {[%clk 0:00:23.3]} 46... Ke7 {[%clk
0:00:08.9]} 47. Rxf5 {[%clk 0:00:24.4]} 47... Rb6 {[%clk 0:00:10.7]} 48. Rf7+
{[%clk 0:00:24.2]} 48... Ke6 {[%clk 0:00:12.1]} 49. Rxg7 {[%clk 0:00:25.3]}
49... h4 {[%clk 0:00:14]} 50. Rh7 {[%clk 0:00:25.9]} 50... Rb8 {[%clk
0:00:14.2]} 51. Rxh4 {[%clk 0:00:24.3]} 51... Rg8 {[%clk 0:00:16.1]} 52. Rg4
{[%clk 0:00:25.3]} 52... a5 {[%clk 0:00:18]} 53. Kxb2 {[%clk 0:00:26.2]} 53...
a4 {[%clk 0:00:19.4]} 54. Ka3 {[%clk 0:00:26.6]} 54... Ke5 {[%clk 0:00:20]} 55.
Kxa4 {[%clk 0:00:27]} 55... Ra8+ {[%clk 0:00:19.3]} 56. Kb3 {[%clk 0:00:27.5]}
56... Rb8+ {[%clk 0:00:21.2]} 57. Kc2 {[%clk 0:00:27.6]} 57... Rf8 {[%clk
0:00:21.7]} 58. Rxf8 {[%clk 0:00:26.9]} 58... Ke6 {[%clk 0:00:22.1]} 59. g7
{[%clk 0:00:27.8]} 59... Ke7 {[%clk 0:00:24]} 60. Rf1 {[%clk 0:00:26]} 60... Kd7
{[%clk 0:00:25.9]} 61. Rg2 {[%clk 0:00:26.8]} 61... Kc6 {[%clk 0:00:27.8]} 62.
Re2 {[%clk 0:00:27.9]} 62... Kb5 {[%clk 0:00:29.7]} 63. Rd1 {[%clk 0:00:28.9]}
63... Ka4 {[%clk 0:00:31.6]} 64. Re3 {[%clk 0:00:28.8]} 64... Kb4 {[%clk
0:00:32.7]} 65. Rd4+ {[%clk 0:00:29.7]} 65... Kc5 {[%clk 0:00:33.9]} 66. Rh4
{[%clk 0:00:30.6]} 66... Kd6 {[%clk 0:00:35.8]} 67. Rg3 {[%clk 0:00:31.4]} 67...
Kd7 {[%clk 0:00:37.6]} 68. Rg5 {[%clk 0:00:32.4]} 68... Ke7 {[%clk 0:00:39.5]}
69. Rh6 {[%clk 0:00:32.9]} 69... Kf7 {[%clk 0:00:40.5]} 70. g8=Q+ {[%clk
0:00:29.3]} 70... Ke7 {[%clk 0:00:42.4]} 71. Re6+ {[%clk 0:00:29.2]} 71... Kd7
{[%clk 0:00:41.3]} 72. Rd5+ {[%clk 0:00:30.1]} 72... Kc7 {[%clk 0:00:43.2]} 73.
Qc8+ {[%clk 0:00:27.5]} 73... Kxc8 {[%clk 0:00:42.8]} 74. Rc6+ {[%clk
0:00:28.3]} 74... Kb7 {[%clk 0:00:43.8]} 75. Rc3 {[%clk 0:00:29.2]} 75... Ka7
{[%clk 0:00:45.7]} 76. Rb5 {[%clk 0:00:28.5]} 76... Ka6 {[%clk 0:00:46.7]} 77.
Rb4 {[%clk 0:00:23]} 77... Ka7 {[%clk 0:00:48.6]} 78. Ra3# {[%clk 0:00:22.7]}
1-0

[Event "*** MasterClass Titled Tuesday Blitz"]
[Site "Chess.com"]
[Date "2017.12.12"]
[Round "9"]
[White "AquivaRubinstein"]
[Black "Angry_Serb"]
[Result "1-0"]
[WhiteElo "2287"]
[BlackElo "2421"]
[TimeControl "180+2"]
[EndTime "15:08:37 PST"]
[Termination "AquivaRubinstein won by resignation"]

1. d4 {[%clk 0:03:01.9]} 1... g6 {[%clk 0:03:00.7]} 2. c4 {[%clk 0:03:00.7]}
2... Bg7 {[%clk 0:03:02.3]} 3. Nc3 {[%clk 0:03:01.9]} 3... e6 {[%clk 0:03:03.8]}
4. e4 {[%clk 0:02:59.7]} 4... Ne7 {[%clk 0:03:05.4]} 5. h4 {[%clk 0:02:58.8]}
5... h6 {[%clk 0:03:05.4]} 6. Nh3 {[%clk 0:02:55.1]} 6... d5 {[%clk 0:02:58.7]}
7. e5 {[%clk 0:02:41.7]} 7... c5 {[%clk 0:02:45.4]} 8. Be3 {[%clk 0:02:19.6]}
8... cxd4 {[%clk 0:02:44]} 9. Bxd4 {[%clk 0:02:20.4]} 9... Nbc6 {[%clk
0:02:45.1]} 10. f4 {[%clk 0:02:06.8]} 10... dxc4 {[%clk 0:02:40.3]} 11. Bc5
{[%clk 0:01:55.1]} 11... Qa5 {[%clk 0:02:33.4]} 12. Bd6 {[%clk 0:01:48.5]} 12...
Nf5 {[%clk 0:02:21]} 13. Bxc4 {[%clk 0:01:31]} 13... Nxd6 {[%clk 0:02:06]} 14.
Qxd6 {[%clk 0:01:28.6]} 14... Bf8 {[%clk 0:02:06.6]} 15. Qd3 {[%clk 0:01:20.3]}
15... Bd7 {[%clk 0:01:56.6]} 16. O-O-O {[%clk 0:01:16.1]} 16... O-O-O {[%clk
0:01:57.3]} 17. Kb1 {[%clk 0:01:12]} 17... Bc5 {[%clk 0:01:48.8]} 18. h5 {[%clk
0:01:10.7]} 18... gxh5 {[%clk 0:01:48.9]} 19. Ng1 {[%clk 0:01:06.7]} 19... Rhg8
{[%clk 0:01:33.3]} 20. g3 {[%clk 0:01:06.7]} 20... Nb4 {[%clk 0:01:32.3]} 21.
Qe2 {[%clk 0:00:38.8]} 21... Bc6 {[%clk 0:01:13]} 22. Nf3 {[%clk 0:00:39.7]}
22... Rxg3 {[%clk 0:01:06.7]} 23. Ne4 {[%clk 0:00:40.4]} 23... Rxd1+ {[%clk
0:00:46.2]} 24. Rxd1 {[%clk 0:00:39.5]} 24... Kc7 {[%clk 0:00:33.4]} 25. Nxg3
{[%clk 0:00:38.6]} 25... b5 {[%clk 0:00:19]} 26. Bb3 {[%clk 0:00:37.2]} 26...
Qb6 {[%clk 0:00:18.3]} 27. Ne4 {[%clk 0:00:36.5]} 27... Be3 {[%clk 0:00:18.2]}
28. Nd6 {[%clk 0:00:29.5]} 28... Bxf4 {[%clk 0:00:18.8]} 29. a3 {[%clk
0:00:28.3]} 29... Nd5 {[%clk 0:00:19.3]} 30. Nd4 {[%clk 0:00:26.3]} 30... Bd7
{[%clk 0:00:12.7]} 31. Qc2+ {[%clk 0:00:25.1]} 31... Kb8 {[%clk 0:00:12.2]} 32.
Bxd5 {[%clk 0:00:22.5]} 32... exd5 {[%clk 0:00:13.1]} 33. Nxf7 {[%clk
0:00:20.1]} 33... h4 {[%clk 0:00:12.1]} 34. e6 {[%clk 0:00:20.7]} 34... Bxe6
{[%clk 0:00:12.9]} 35. Nxe6 {[%clk 0:00:21.4]} 35... Qxe6 {[%clk 0:00:14.8]} 36.
Nd8 {[%clk 0:00:21]} 36... Qd6 {[%clk 0:00:14.2]} 37. Nc6+ {[%clk 0:00:20.9]}
37... Kb7 {[%clk 0:00:15.1]} 38. Nd4 {[%clk 0:00:21.2]} 38... a6 {[%clk
0:00:15.6]} 39. Qh7+ {[%clk 0:00:18.5]} 39... Kb6 {[%clk 0:00:16.5]} 40. Qf5
{[%clk 0:00:19.1]} 40... h3 {[%clk 0:00:17.5]} 41. Qxh3 {[%clk 0:00:19.5]} 41...
Be5 {[%clk 0:00:16.7]} 42. Qe3 {[%clk 0:00:19.5]} 42... Kb7 {[%clk 0:00:17]} 43.
Re1 {[%clk 0:00:19.5]} 43... Bf6 {[%clk 0:00:15.2]} 44. Nf5 {[%clk 0:00:20.2]}
44... Qh2 {[%clk 0:00:15.3]} 45. Qe2 {[%clk 0:00:17]} 45... Qh3 {[%clk
0:00:15.9]} 46. Nd6+ {[%clk 0:00:13.3]} 46... Kc6 {[%clk 0:00:16.9]} 47. Ne8
{[%clk 0:00:13.9]} 47... Bd4 {[%clk 0:00:17]} 48. Qe6+ {[%clk 0:00:14.5]} 48...
Qxe6 {[%clk 0:00:17.4]} 49. Rxe6+ {[%clk 0:00:16.1]} 49... Kd7 {[%clk
0:00:19.3]} 50. Re1 {[%clk 0:00:17]} 50... h5 {[%clk 0:00:20.6]} 51. Kc2 {[%clk
0:00:16.1]} 51... h4 {[%clk 0:00:21.6]} 52. Kd3 {[%clk 0:00:17.1]} 52... Bxb2
{[%clk 0:00:20.4]} 53. Re2 {[%clk 0:00:11.1]} 53... Ba1 {[%clk 0:00:21.3]} 54.
Kc2 {[%clk 0:00:08.2]} 54... h3 {[%clk 0:00:22.1]} 55. Kb1 {[%clk 0:00:08.3]}
55... Bd4 {[%clk 0:00:22.7]} 56. Rd2 {[%clk 0:00:09]} 56... Be5 {[%clk 0:00:22]}
57. Rxd5+ {[%clk 0:00:09.8]} 57... Ke6 {[%clk 0:00:21.9]} 58. Rd3 {[%clk
0:00:10.3]} 58... h2 {[%clk 0:00:22.7]} 59. Rh3 {[%clk 0:00:11.3]} 59... Ke7
{[%clk 0:00:23.2]} 60. Rh5 {[%clk 0:00:11]} 60... Kd7 {[%clk 0:00:22.2]} 61. Kc2
{[%clk 0:00:10.4]} 61... h1=Q {[%clk 0:00:21]} 62. Rxh1 {[%clk 0:00:10.7]} 62...
Kxe8 {[%clk 0:00:22.6]} 63. Re1 {[%clk 0:00:12.3]} 63... Kd7 {[%clk 0:00:22.9]}
64. Rxe5 {[%clk 0:00:13.3]} 64... Kc6 {[%clk 0:00:24.4]} 65. Kb3 {[%clk
0:00:13.9]} 65... Kb6 {[%clk 0:00:25.8]} 66. Re6+ {[%clk 0:00:13.9]} 66... Ka5
{[%clk 0:00:27.2]} 67. Rf6 {[%clk 0:00:14.3]} 67... b4 {[%clk 0:00:27.3]} 68.
axb4+ {[%clk 0:00:15.5]} 68... Kb5 {[%clk 0:00:29.2]} 69. Rf5+ {[%clk
0:00:15.9]} 69... Kb6 {[%clk 0:00:30.8]} 1-0

[Event "*** MasterClass Titled Tuesday Blitz"]
[Site "Chess.com"]
[Date "2017.12.12"]
[Round "9"]
[White "chito89"]
[Black "sandromareco"]
[Result "1-0"]
[WhiteElo "2598"]
[BlackElo "2636"]
[TimeControl "180+2"]
[EndTime "15:09:51 PST"]
[Termination "chito89 won by checkmate"]

1. d4 {[%clk 0:02:58.7]} 1... d5 {[%clk 0:03:00.7]} 2. c4 {[%clk 0:02:55.2]}
2... c6 {[%clk 0:03:02.6]} 3. Nf3 {[%clk 0:02:55.1]} 3... Nf6 {[%clk 0:03:03.5]}
4. g3 {[%clk 0:02:55.9]} 4... e6 {[%clk 0:03:02.5]} 5. Bg2 {[%clk 0:02:55.8]}
5... Nbd7 {[%clk 0:03:03.7]} 6. Nbd2 {[%clk 0:02:54.5]} 6... Be7 {[%clk
0:03:02.4]} 7. O-O {[%clk 0:02:54.7]} 7... O-O {[%clk 0:03:03.7]} 8. Qc2 {[%clk
0:02:53.4]} 8... b6 {[%clk 0:03:05.2]} 9. e4 {[%clk 0:02:52.9]} 9... Ba6 {[%clk
0:03:03]} 10. b3 {[%clk 0:02:46.4]} 10... Rc8 {[%clk 0:03:03.5]} 11. Re1 {[%clk
0:02:41.6]} 11... h6 {[%clk 0:03:01.8]} 12. Bb2 {[%clk 0:02:40.8]} 12... Re8
{[%clk 0:02:54.3]} 13. Rac1 {[%clk 0:02:24.8]} 13... Bb7 {[%clk 0:02:54.7]} 14.
e5 {[%clk 0:02:14.8]} 14... Nh7 {[%clk 0:02:55.1]} 15. cxd5 {[%clk 0:02:11.2]}
15... cxd5 {[%clk 0:02:52.3]} 16. Qd3 {[%clk 0:02:11.1]} 16... Nb8 {[%clk
0:02:53.2]} 17. h4 {[%clk 0:01:59]} 17... Ba6 {[%clk 0:02:52.3]} 18. Qe3 {[%clk
0:01:59.6]} 18... Nc6 {[%clk 0:02:52.2]} 19. a3 {[%clk 0:01:57.7]} 19... Qd7
{[%clk 0:02:50.8]} 20. Qf4 {[%clk 0:01:52]} 20... Na5 {[%clk 0:02:43.8]} 21. Qg4
{[%clk 0:01:43.9]} 21... Rxc1 {[%clk 0:02:44.3]} 22. Bxc1 {[%clk 0:01:43.9]}
22... Rc8 {[%clk 0:02:46.2]} 23. b4 {[%clk 0:01:44.2]} 23... Nc6 {[%clk
0:02:40.9]} 24. Nf1 {[%clk 0:01:44.6]} 24... Kh8 {[%clk 0:02:39.9]} 25. Qh5
{[%clk 0:01:45.2]} 25... Bf8 {[%clk 0:02:39.1]} 26. Ne3 {[%clk 0:01:38.3]} 26...
Bd3 {[%clk 0:02:38.1]} 27. Qg4 {[%clk 0:01:19.6]} 27... a5 {[%clk 0:02:35.4]}
28. bxa5 {[%clk 0:01:13.8]} 28... Nxa5 {[%clk 0:02:36]} 29. Bf1 {[%clk
0:01:02.7]} 29... Bxf1 {[%clk 0:02:27.5]} 30. Nxf1 {[%clk 0:01:04]} 30... Nb3
{[%clk 0:02:27]} 31. Qf4 {[%clk 0:01:05.1]} 31... Kg8 {[%clk 0:02:21.2]} 32. Be3
{[%clk 0:00:57.9]} 32... Bxa3 {[%clk 0:02:19.7]} 33. Rb1 {[%clk 0:00:57.9]}
33... Na5 {[%clk 0:02:14]} 34. Rxb6 {[%clk 0:00:57.4]} 34... Nc4 {[%clk
0:02:15.2]} 35. Rb3 {[%clk 0:00:58.6]} 35... Be7 {[%clk 0:02:11.9]} 36. Qg4
{[%clk 0:00:58.9]} 36... Kh8 {[%clk 0:02:12]} 37. Rb1 {[%clk 0:00:55.7]} 37...
Nf8 {[%clk 0:02:11.3]} 38. Qh5 {[%clk 0:00:52.3]} 38... Kg8 {[%clk 0:02:12]} 39.
Bf4 {[%clk 0:00:50.1]} 39... Ng6 {[%clk 0:02:11.3]} 40. N1h2 {[%clk 0:00:45.5]}
40... Qa4 {[%clk 0:02:07.4]} 41. Qg4 {[%clk 0:00:42]} 41... Nxf4 {[%clk
0:02:02.5]} 42. Qxf4 {[%clk 0:00:42.1]} 42... Qa7 {[%clk 0:01:58.2]} 43. Ng4
{[%clk 0:00:40.9]} 43... Qc7 {[%clk 0:01:53.3]} 44. Nfh2 {[%clk 0:00:34.5]}
44... Bf8 {[%clk 0:01:49.7]} 45. Ra1 {[%clk 0:00:32.6]} 45... Nb2 {[%clk
0:01:39.4]} 46. Nf3 {[%clk 0:00:32.2]} 46... Nd3 {[%clk 0:01:40.1]} 47. Qe3
{[%clk 0:00:32.8]} 47... Nb4 {[%clk 0:01:39]} 48. Qb3 {[%clk 0:00:32.4]} 48...
Qb7 {[%clk 0:01:34.9]} 49. Kg2 {[%clk 0:00:32.2]} 49... Qb5 {[%clk 0:01:34.6]}
50. Ra7 {[%clk 0:00:30.7]} 50... Rc1 {[%clk 0:01:33.6]} 51. Ne3 {[%clk
0:00:27.6]} 51... Qb8 {[%clk 0:01:26.5]} 52. Qa4 {[%clk 0:00:27]} 52... Qd8
{[%clk 0:01:06.8]} 53. Rb7 {[%clk 0:00:19.7]} 53... Nc6 {[%clk 0:00:53.8]} 54.
h5 {[%clk 0:00:20.4]} 54... Qc8 {[%clk 0:00:51.5]} 55. Rb6 {[%clk 0:00:19.2]}
55... Qc7 {[%clk 0:00:50.5]} 56. Qb5 {[%clk 0:00:20.2]} 56... Rc3 {[%clk
0:00:42.2]} 57. Qb2 {[%clk 0:00:19.9]} 57... Nd8 {[%clk 0:00:37.5]} 58. Rb8
{[%clk 0:00:20.1]} 58... Rc6 {[%clk 0:00:33.8]} 59. Qb5 {[%clk 0:00:21.1]} 59...
Be7 {[%clk 0:00:35.3]} 60. Ra8 {[%clk 0:00:21.4]} 60... Kh7 {[%clk 0:00:35.2]}
61. Qb1+ {[%clk 0:00:21]} 61... Kg8 {[%clk 0:00:36.6]} 62. Qb5 {[%clk 0:00:22]}
62... Kh7 {[%clk 0:00:37.5]} 63. Ng4 {[%clk 0:00:22.2]} 63... Rb6 {[%clk
0:00:36.5]} 64. Qe8 {[%clk 0:00:22.6]} 64... Rb7 {[%clk 0:00:32.6]} 65. Ne3
{[%clk 0:00:19.1]} 65... Qd7 {[%clk 0:00:32.5]} 66. Qxd7 {[%clk 0:00:17.6]}
66... Rxd7 {[%clk 0:00:34.4]} 67. g4 {[%clk 0:00:17.6]} 67... Nc6 {[%clk
0:00:33.6]} 68. Nd1 {[%clk 0:00:17.3]} 68... Rb7 {[%clk 0:00:33.6]} 69. Nc3
{[%clk 0:00:17.3]} 69... Rb4 {[%clk 0:00:34]} 70. Ne2 {[%clk 0:00:16.6]} 70...
Rb2 {[%clk 0:00:34.5]} 71. Nf4 {[%clk 0:00:17.3]} 71... Bg5 {[%clk 0:00:35.3]}
72. Nh3 {[%clk 0:00:15.8]} 72... Be3 {[%clk 0:00:31.6]} 73. Rf8 {[%clk
0:00:16.6]} 73... Nxd4 {[%clk 0:00:28.4]} 74. Rxf7 {[%clk 0:00:17.4]} 74... Nxf3
{[%clk 0:00:28.6]} 75. Kxf3 {[%clk 0:00:17.8]} 75... Bd4 {[%clk 0:00:28.9]} 76.
Re7 {[%clk 0:00:15.6]} 76... Rb3+ {[%clk 0:00:20.8]} 77. Kg2 {[%clk 0:00:15.7]}
77... Bxe5 {[%clk 0:00:21.5]} 78. g5 {[%clk 0:00:16.6]} 78... hxg5 {[%clk
0:00:21.7]} 79. Nxg5+ {[%clk 0:00:16.9]} 79... Kh6 {[%clk 0:00:23]} 80. Nf7+
{[%clk 0:00:18.1]} 80... Kxh5 {[%clk 0:00:24.4]} 81. Nxe5 {[%clk 0:00:19.3]}
81... Rb6 {[%clk 0:00:25.2]} 82. Rxg7 {[%clk 0:00:19.7]} 82... d4 {[%clk
0:00:26.5]} 83. f4 {[%clk 0:00:20.4]} 83... Rb3 {[%clk 0:00:26.1]} 84. Rh7#
{[%clk 0:00:20.9]} 1-0

[Event "*** MasterClass Titled Tuesday Blitz"]
[Site "Chess.com"]
[Date "2017.12.12"]
[Round "10"]
[White "Noukii"]
[Black "evgenysharapov"]
[Result "1-0"]
[WhiteElo "2611"]
[BlackElo "2337"]
[TimeControl "180+2"]
[EndTime "15:13:24 PST"]
[Termination "Noukii won by resignation"]

1. d4 {[%clk 0:02:36.7]} 1... d5 {[%clk 0:03:00.4]} 2. c4 {[%clk 0:02:35]} 2...
c6 {[%clk 0:03:01]} 3. Nc3 {[%clk 0:02:36]} 3... Nf6 {[%clk 0:03:01.8]} 4. Nf3
{[%clk 0:02:37.7]} 4... e6 {[%clk 0:03:02.1]} 5. Bg5 {[%clk 0:02:38.3]} 5... Be7
{[%clk 0:03:01.3]} 6. e3 {[%clk 0:02:39.4]} 6... Nbd7 {[%clk 0:03:01.6]} 7. Bd3
{[%clk 0:02:38.7]} 7... O-O {[%clk 0:03:02]} 8. O-O {[%clk 0:02:39.4]} 8... b6
{[%clk 0:03:01.4]} 9. Rc1 {[%clk 0:02:28.4]} 9... Bb7 {[%clk 0:03:01.6]} 10.
cxd5 {[%clk 0:02:24.5]} 10... cxd5 {[%clk 0:03:01.1]} 11. Qa4 {[%clk 0:02:07.9]}
11... a6 {[%clk 0:02:57.2]} 12. Ne5 {[%clk 0:02:08.8]} 12... Nxe5 {[%clk
0:02:51.6]} 13. dxe5 {[%clk 0:02:10.2]} 13... Nd7 {[%clk 0:02:51.7]} 14. Qh4
{[%clk 0:02:11.3]} 1-0